[Event "Titled Tuesday Blitz May 10 Early 2022"]
[White "Shyaamnikhil P"]
[Black "Kamsky, Gata"]
[WhiteFideId "5024218"]
[BlackFideId "2000024"]
[WhiteElo "2329"]
[BlackElo "2645"]
[Result "1/2-1/2"]
[Round "08"]
[TimeControl "180+1"]
[Date "2022.05.10"]
[WhiteClock "0:00:48"]
[BlackClock "0:00:50"]

1. d4 {[%clk 0:03:00]}  d5 {[%clk 0:02:56]} 2. Nf3 {[%clk 0:03:00]}  Nf6 {[%clk 0:02:49]} 3. c4 {[%clk 0:02:55]}  c6 {[%clk 0:02:50]} 4. Qc2 {[%clk 0:02:54]}  dxc4 {[%clk 0:02:48]} 5. Qxc4 {[%clk 0:02:53]}  e6 {[%clk 0:02:42]} 6. Qc2 {[%clk 0:02:39]}  c5 {[%clk 0:02:26]} 7. dxc5 {[%clk 0:02:29]}  Qa5+ {[%clk 0:02:22]} 8. Nc3 {[%clk 0:02:26]}  Nc6 {[%clk 0:02:22]} 9. Bd2 {[%clk 0:02:20]}  Qxc5 {[%clk 0:02:19]} 10. e3 {[%clk 0:02:13]}  Be7 {[%clk 0:02:13]} 11. Rc1 {[%clk 0:02:02]}  O-O {[%clk 0:02:09]} 12. Be2 {[%clk 0:01:55]}  b6 {[%clk 0:02:05]} 13. O-O {[%clk 0:01:53]}  Bb7 {[%clk 0:02:05]} 14. Rfd1 {[%clk 0:01:52]}  Rfd8 {[%clk 0:02:04]} 15. Be1 {[%clk 0:01:52]}  Rac8 {[%clk 0:01:59]} 16. Rxd8+ {[%clk 0:01:51]}  Rxd8 {[%clk 0:01:58]} 17. Rd1 {[%clk 0:01:51]}  Rxd1 {[%clk 0:01:55]} 18. Qxd1 {[%clk 0:01:52]}  Qd6 {[%clk 0:01:50]} 19. Qxd6 {[%clk 0:01:49]}  Bxd6 {[%clk 0:01:50]} 20. a3 {[%clk 0:01:46]}  h6 {[%clk 0:01:43]} 21. g3 {[%clk 0:01:40]}  g5 {[%clk 0:01:38]} 22. h3 {[%clk 0:01:36]}  Ne5 {[%clk 0:01:35]} 23. Nxe5 {[%clk 0:01:22]}  Bxe5 {[%clk 0:01:35]} 24. f4 {[%clk 0:01:22]}  Bd6 {[%clk 0:01:32]} 25. Kf2 {[%clk 0:01:15]}  Ne4+ {[%clk 0:01:28]} 26. Nxe4 {[%clk 0:01:14]}  Bxe4 {[%clk 0:01:28]} 27. Bf3 {[%clk 0:01:12]}  Bxf3 {[%clk 0:01:18]} 28. Kxf3 {[%clk 0:01:11]}  gxf4 {[%clk 0:01:15]} 29. exf4 {[%clk 0:01:07]}  f5 {[%clk 0:01:12]} 30. g4 {[%clk 0:01:05]}  a6 {[%clk 0:01:09]} 31. a4 {[%clk 0:01:03]}  Kf7 {[%clk 0:01:08]} 32. b3 {[%clk 0:01:01]}  Kg6 {[%clk 0:01:07]} 33. Bf2 {[%clk 0:00:54]}  b5 {[%clk 0:01:06]} 34. axb5 {[%clk 0:00:54]}  axb5 {[%clk 0:01:06]} 35. gxf5+ {[%clk 0:00:48]}  Kxf5 {[%clk 0:01:06]} 36. Be3 {[%clk 0:00:48]}  h5 {[%clk 0:01:05]} 37. Bd2 {[%clk 0:00:48]}  Bc7 {[%clk 0:01:01]} 38. Be3 {[%clk 0:00:48]}  Bd6 {[%clk 0:00:58]} 39. Bd2 {[%clk 0:00:48]}  Bc7 {[%clk 0:00:50]} 40. Be3 {[%clk 0:00:48]}  Bd6 {[%clk 0:00:50]} 1/2-1/2


[Site "https://www.chess.com"]

[Event "Titled Tuesday Blitz May 10 Early 2022"]
[White "Simonovic, Miroslav"]
[Black "Jaskolka, Tomasz"]
[WhiteFideId "919152"]
[BlackFideId "1170791"]
[WhiteElo "2043"]
[BlackElo "2073"]
[Result "0-1"]
[Round "08"]
[TimeControl "180+1"]
[Date "2022.05.11"]
[WhiteClock "0:01:04"]
[BlackClock "0:01:27"]

1. d4 {[%clk 0:03:00]}  d6 {[%clk 0:02:58]} 2. Bg5 {[%clk 0:03:01]}  c6 {[%clk 0:02:58]} 3. h4 {[%clk 0:03:00]}  h6 {[%clk 0:02:57]} 4. Bf4 {[%clk 0:03:00]}  Nf6 {[%clk 0:02:57]} 5. c4 {[%clk 0:03:00]}  Qc7 {[%clk 0:02:57]} 6. Nc3 {[%clk 0:03:00]}  e5 {[%clk 0:02:55]} 7. dxe5 {[%clk 0:03:00]}  dxe5 {[%clk 0:02:56]} 8. Bg3 {[%clk 0:03:00]}  Be6 {[%clk 0:02:56]} 9. Nf3 {[%clk 0:02:59]}  Nbd7 {[%clk 0:02:54]} 10. e4 {[%clk 0:02:55]}  Bb4 {[%clk 0:02:53]} 11. Qc2 {[%clk 0:02:54]}  O-O-O {[%clk 0:02:52]} 12. O-O-O {[%clk 0:02:54]}  Bxc3 {[%clk 0:02:16]} 13. bxc3 {[%clk 0:02:44]}  Qa5 {[%clk 0:02:14]} 14. Bd3 {[%clk 0:02:27]}  Ng4 {[%clk 0:02:09]} 15. Rhe1 {[%clk 0:02:21]}  f6 {[%clk 0:02:09]} 16. Kb2 {[%clk 0:02:11]}  Nb6 {[%clk 0:02:06]} 17. Qb3 {[%clk 0:02:10]}  Rxd3 {[%clk 0:01:55]} 18. Rxd3 {[%clk 0:02:09]}  Bxc4 {[%clk 0:01:54]} 19. Qc2 {[%clk 0:01:58]}  Qxa2+ {[%clk 0:01:53]} 20. Kc1 {[%clk 0:01:59]}  Qa3+ {[%clk 0:01:45]} 21. Kd2 {[%clk 0:01:51]}  Bxd3 {[%clk 0:01:42]} 22. Kxd3 {[%clk 0:01:52]}  Rd8+ {[%clk 0:01:36]} 23. Ke2 {[%clk 0:01:04]}  Qa6+ {[%clk 0:01:35]} 24. c4 {[%clk 0:01:04]}  Nxc4 {[%clk 0:01:31]} 25. Kf1 {[%clk 0:01:04]}  Nce3+ {[%clk 0:01:27]} 0-1


[Site "https://www.chess.com"]

[Event "Titled Tuesday Blitz May 10 Early 2022"]
[White "Sjugirov, Sanan"]
[Black "Fier, Alexandr"]
[WhiteFideId "4189302"]
[BlackFideId "2107139"]
[WhiteElo "2602"]
[BlackElo "2571"]
[Result "1-0"]
[Round "08"]
[TimeControl "180+1"]
[Date "2022.05.10"]
[WhiteClock "0:01:22"]
[BlackClock "0:00:43"]

1. e4 {[%clk 0:03:00]}  c5 {[%clk 0:03:00]} 2. Nc3 {[%clk 0:02:59]}  Nc6 {[%clk 0:03:00]} 3. Nge2 {[%clk 0:02:59]}  g6 {[%clk 0:02:58]} 4. d4 {[%clk 0:02:59]}  cxd4 {[%clk 0:02:59]} 5. Nxd4 {[%clk 0:03:00]}  Bg7 {[%clk 0:02:59]} 6. Be3 {[%clk 0:03:00]}  Nf6 {[%clk 0:02:59]} 7. Bc4 {[%clk 0:03:00]}  O-O {[%clk 0:02:58]} 8. Bb3 {[%clk 0:03:00]}  d6 {[%clk 0:02:59]} 9. h3 {[%clk 0:02:54]}  Nxd4 {[%clk 0:02:51]} 10. Bxd4 {[%clk 0:02:54]}  b6 {[%clk 0:02:51]} 11. O-O {[%clk 0:02:52]}  Bb7 {[%clk 0:02:52]} 12. Re1 {[%clk 0:02:44]}  Rc8 {[%clk 0:02:51]} 13. Qd3 {[%clk 0:02:14]}  a6 {[%clk 0:02:36]} 14. Rad1 {[%clk 0:02:12]}  b5 {[%clk 0:02:35]} 15. Nd5 {[%clk 0:02:07]}  Bxd5 {[%clk 0:02:32]} 16. exd5 {[%clk 0:02:06]}  Nd7 {[%clk 0:02:32]} 17. Bxg7 {[%clk 0:02:03]}  Kxg7 {[%clk 0:02:33]} 18. Re3 {[%clk 0:02:00]}  Re8 {[%clk 0:02:31]} 19. Rde1 {[%clk 0:02:00]}  Nc5 {[%clk 0:02:19]} 20. Qd4+ {[%clk 0:02:00]}  Kg8 {[%clk 0:02:19]} 21. c3 {[%clk 0:01:55]}  Nxb3 {[%clk 0:01:46]} 22. axb3 {[%clk 0:01:54]}  Qc7 {[%clk 0:01:47]} 23. h4 {[%clk 0:01:46]}  Qc5 {[%clk 0:01:43]} 24. Qd3 {[%clk 0:01:44]}  Rc7 {[%clk 0:01:29]} 25. h5 {[%clk 0:01:43]}  a5 {[%clk 0:01:12]} 26. Re4 {[%clk 0:01:39]}  Ra7 {[%clk 0:00:58]} 27. hxg6 {[%clk 0:01:33]}  hxg6 {[%clk 0:00:55]} 28. Rh4 {[%clk 0:01:28]}  Kg7 {[%clk 0:00:53]} 29. b4 {[%clk 0:01:22]}  axb4 {[%clk 0:00:51]} 30. cxb4 {[%clk 0:01:23]}  Qc8 {[%clk 0:00:43]} 31. Qd4+ {[%clk 0:01:22]}  f6 {[%clk 0:00:43]} 32. Qxa7 {[%clk 0:01:22]} 1-0


[Site "https://www.chess.com"]

[Event "Titled Tuesday Blitz May 10 Early 2022"]
[White "Steinberg, Nitzan"]
[Black "Dubov, Daniil"]
[WhiteFideId "2801795"]
[BlackFideId "24126055"]
[WhiteElo "2471"]
[BlackElo "2791"]
[Result "1-0"]
[Round "08"]
[TimeControl "180+1"]
[Date "2022.05.10"]
[WhiteClock "0:00:11"]
[BlackClock "0:00:04"]

1. e4 {[%clk 0:03:00]}  c5 {[%clk 0:02:58]} 2. Nf3 {[%clk 0:03:01]}  e6 {[%clk 0:02:58]} 3. d4 {[%clk 0:03:01]}  cxd4 {[%clk 0:02:58]} 4. Nxd4 {[%clk 0:03:02]}  a6 {[%clk 0:02:59]} 5. Be2 {[%clk 0:03:01]}  Nf6 {[%clk 0:02:57]} 6. Nc3 {[%clk 0:03:01]}  Bb4 {[%clk 0:02:54]} 7. e5 {[%clk 0:03:01]}  Nd5 {[%clk 0:02:53]} 8. Bd2 {[%clk 0:03:01]}  Bxc3 {[%clk 0:02:26]} 9. bxc3 {[%clk 0:03:01]}  Qc7 {[%clk 0:02:26]} 10. c4 {[%clk 0:02:52]}  Ne7 {[%clk 0:02:26]} 11. O-O {[%clk 0:02:43]}  Qxe5 {[%clk 0:02:05]} 12. Nf3 {[%clk 0:02:43]}  Qc7 {[%clk 0:01:46]} 13. Bb4 {[%clk 0:02:39]}  d5 {[%clk 0:01:35]} 14. Bxe7 {[%clk 0:02:17]}  Qxe7 {[%clk 0:01:35]} 15. cxd5 {[%clk 0:02:18]}  exd5 {[%clk 0:01:35]} 16. Qxd5 {[%clk 0:02:15]}  O-O {[%clk 0:01:35]} 17. Bd3 {[%clk 0:02:12]}  Nc6 {[%clk 0:01:29]} 18. Rfe1 {[%clk 0:02:06]}  Qf6 {[%clk 0:01:25]} 19. Rab1 {[%clk 0:02:06]}  Be6 {[%clk 0:01:17]} 20. Qe4 {[%clk 0:02:03]}  g6 {[%clk 0:01:15]} 21. Rxb7 {[%clk 0:02:03]}  Bxa2 {[%clk 0:00:44]} 22. Rb6 {[%clk 0:01:54]}  Rac8 {[%clk 0:00:43]} 23. Bxa6 {[%clk 0:01:45]}  Rfe8 {[%clk 0:00:36]} 24. Qa4 {[%clk 0:01:13]}  Rxe1+ {[%clk 0:00:33]} 25. Nxe1 {[%clk 0:01:14]}  Qa1 {[%clk 0:00:28]} 26. Rxc6 {[%clk 0:00:51]}  Qxe1+ {[%clk 0:00:25]} 27. Bf1 {[%clk 0:00:51]}  Rxc6 {[%clk 0:00:22]} 28. Qxc6 {[%clk 0:00:52]}  Be6 {[%clk 0:00:20]} 29. h3 {[%clk 0:00:44]}  h5 {[%clk 0:00:20]} 30. Qa8+ {[%clk 0:00:36]}  Kh7 {[%clk 0:00:19]} 31. Qc6 {[%clk 0:00:30]}  Qc1 {[%clk 0:00:13]} 32. c4 {[%clk 0:00:20]}  Bf5 {[%clk 0:00:12]} 33. Qd5 {[%clk 0:00:20]}  Be6 {[%clk 0:00:12]} 34. Qd4 {[%clk 0:00:16]}  Kg8 {[%clk 0:00:10]} 35. Qe3 {[%clk 0:00:15]}  Qd1 {[%clk 0:00:08]} 36. Qc3 {[%clk 0:00:13]}  Bc8 {[%clk 0:00:07]} 37. Qd3 {[%clk 0:00:09]}  Qxd3 {[%clk 0:00:07]} 38. Bxd3 {[%clk 0:00:10]}  Kg7 {[%clk 0:00:07]} 39. f4 {[%clk 0:00:10]}  Kf6 {[%clk 0:00:07]} 40. Kf2 {[%clk 0:00:10]}  h4 {[%clk 0:00:07]} 41. Be4 {[%clk 0:00:10]}  Ke7 {[%clk 0:00:05]} 42. Ke3 {[%clk 0:00:11]}  Ba6 {[%clk 0:00:04]} 43. Kd4 {[%clk 0:00:11]} 1-0


[Site "https://www.chess.com"]

[Event "Titled Tuesday Blitz May 10 Early 2022"]
[White "Stribuk, Artiom"]
[Black "Agasarov, Benik"]
[WhiteFideId "13515659"]
[BlackFideId "13314823"]
[WhiteElo "2259"]
[BlackElo "2578"]
[Result "1-0"]
[Round "08"]
[TimeControl "180+1"]
[Date "2022.05.11"]
[WhiteClock "0:00:07"]
[BlackClock "0:00:02"]

1. d4 {[%clk 0:02:54]}  Nf6 {[%clk 0:02:59]} 2. c4 {[%clk 0:02:55]}  e6 {[%clk 0:02:57]} 3. Nc3 {[%clk 0:02:54]}  d5 {[%clk 0:02:55]} 4. cxd5 {[%clk 0:02:54]}  Nxd5 {[%clk 0:02:52]} 5. Nf3 {[%clk 0:02:54]}  c5 {[%clk 0:02:51]} 6. e3 {[%clk 0:02:54]}  Nc6 {[%clk 0:02:46]} 7. Bd3 {[%clk 0:02:53]}  Be7 {[%clk 0:02:45]} 8. O-O {[%clk 0:02:52]}  cxd4 {[%clk 0:02:44]} 9. exd4 {[%clk 0:02:50]}  O-O {[%clk 0:02:44]} 10. Re1 {[%clk 0:02:47]}  Bf6 {[%clk 0:02:44]} 11. Be4 {[%clk 0:02:43]}  Nce7 {[%clk 0:02:42]} 12. Qd3 {[%clk 0:02:25]}  h6 {[%clk 0:02:35]} 13. Bd2 {[%clk 0:02:24]}  Bd7 {[%clk 0:02:22]} 14. Qe2 {[%clk 0:02:09]}  Bc6 {[%clk 0:02:19]} 15. Bc2 {[%clk 0:01:53]}  Nf5 {[%clk 0:02:02]} 16. Rad1 {[%clk 0:01:44]}  Nxc3 {[%clk 0:01:57]} 17. bxc3 {[%clk 0:01:37]}  Rc8 {[%clk 0:01:55]} 18. Qd3 {[%clk 0:01:30]}  Bd5 {[%clk 0:01:50]} 19. Ne5 {[%clk 0:01:28]}  Bxe5 {[%clk 0:01:22]} 20. Rxe5 {[%clk 0:01:28]}  g6 {[%clk 0:01:16]} 21. Qh3 {[%clk 0:01:23]}  Nxd4 {[%clk 0:00:38]} 22. Qxh6 {[%clk 0:01:11]}  Qf6 {[%clk 0:00:25]} 23. Rh5 {[%clk 0:00:34]}  Ne2+ {[%clk 0:00:20]} 24. Kf1 {[%clk 0:00:30]}  Qg7 {[%clk 0:00:20]} 25. Qxg7+ {[%clk 0:00:19]}  Kxg7 {[%clk 0:00:21]} 26. Rh3 {[%clk 0:00:19]}  Bc4 {[%clk 0:00:18]} 27. Ke1 {[%clk 0:00:16]}  Rfd8 {[%clk 0:00:17]} 28. Bb3 {[%clk 0:00:12]}  Ba6 {[%clk 0:00:10]} 29. Rf3 {[%clk 0:00:07]}  Rd7 {[%clk 0:00:08]} 30. c4 {[%clk 0:00:06]}  Nd4 {[%clk 0:00:06]} 31. Bc3 {[%clk 0:00:06]}  e5 {[%clk 0:00:07]} 32. Re3 {[%clk 0:00:06]}  Bxc4 {[%clk 0:00:06]} 33. Rxe5 {[%clk 0:00:05]}  Bxb3 {[%clk 0:00:06]} 34. Rxd4 {[%clk 0:00:04]}  Rxd4 {[%clk 0:00:01]} 35. Bxd4 {[%clk 0:00:05]}  Rc1+ {[%clk 0:00:02]} 36. Kd2 {[%clk 0:00:04]}  Rd1+ {[%clk 0:00:02]} 37. Kc3 {[%clk 0:00:05]}  Bxa2 {[%clk 0:00:02]} 38. Re1+ {[%clk 0:00:04]}  Rxd4 {[%clk 0:00:03]} 39. Kxd4 {[%clk 0:00:05]}  Be6 {[%clk 0:00:03]} 40. Kc5 {[%clk 0:00:05]}  a5 {[%clk 0:00:03]} 41. Kb5 {[%clk 0:00:05]}  a4 {[%clk 0:00:04]} 42. Kxa4 {[%clk 0:00:06]}  Bd5 {[%clk 0:00:04]} 43. g3 {[%clk 0:00:06]}  Bc6+ {[%clk 0:00:05]} 44. Kb4 {[%clk 0:00:06]}  Kf6 {[%clk 0:00:05]} 45. Re3 {[%clk 0:00:06]}  Kf5 {[%clk 0:00:06]} 46. h3 {[%clk 0:00:06]}  g5 {[%clk 0:00:06]} 47. Kc5 {[%clk 0:00:06]}  f6 {[%clk 0:00:05]} 48. Kd6 {[%clk 0:00:06]}  Bg2 {[%clk 0:00:04]} 49. g4+ {[%clk 0:00:06]}  Kf4 {[%clk 0:00:04]} 50. Ke6 {[%clk 0:00:06]}  b5 {[%clk 0:00:03]} 51. Kxf6 {[%clk 0:00:06]}  b4 {[%clk 0:00:04]} 52. Re5 {[%clk 0:00:06]}  Bxh3 {[%clk 0:00:04]} 53. Rxg5 {[%clk 0:00:04]}  Bxg4 {[%clk 0:00:04]} 54. Rb5 {[%clk 0:00:03]}  Kf3 {[%clk 0:00:04]} 55. Rxb4 {[%clk 0:00:03]}  Bh3 {[%clk 0:00:05]} 56. Rb2 {[%clk 0:00:04]}  Bf1 {[%clk 0:00:04]} 57. Ke5 {[%clk 0:00:05]}  Be2 {[%clk 0:00:05]} 58. Kd4 {[%clk 0:00:03]}  Kxf2 {[%clk 0:00:05]} 59. Ke4 {[%clk 0:00:04]}  Kf1 {[%clk 0:00:04]} 60. Ke3 {[%clk 0:00:05]}  Bg4 {[%clk 0:00:04]} 61. Rf2+ {[%clk 0:00:05]}  Kg1 {[%clk 0:00:05]} 62. Rf4 {[%clk 0:00:05]}  Bh3 {[%clk 0:00:04]} 63. Kf3 {[%clk 0:00:05]}  Bg2+ {[%clk 0:00:02]} 64. Kg3 {[%clk 0:00:05]}  Bf1 {[%clk 0:00:03]} 65. Rf2 {[%clk 0:00:05]}  Bc4 {[%clk 0:00:02]} 66. Rc2 {[%clk 0:00:05]}  Bb5 {[%clk 0:00:01]} 67. Rc1+ {[%clk 0:00:05]}  Bf1 {[%clk 0:00:02]} 68. Rb1 {[%clk 0:00:06]}  Kh1 {[%clk 0:00:02]} 69. Rxf1# {[%clk 0:00:07]} 1-0


[Site "https://www.chess.com"]

[Event "Titled Tuesday Blitz May 10 Early 2022"]
[White "Todorovic, Bojan"]
[Black "Jodorcovsky Werjivker, Paulo"]
[WhiteFideId "917087"]
[BlackFideId "3700305"]
[WhiteElo "2266"]
[BlackElo "2075"]
[Result "1-0"]
[Round "08"]
[TimeControl "180+1"]
[Date "2022.05.11"]
[WhiteClock "0:00:35"]
[BlackClock "0:01:35"]

1. d4 {[%clk 0:02:59]}  f5 {[%clk 0:02:59]} 2. g3 {[%clk 0:02:58]}  Nf6 {[%clk 0:02:59]} 3. Bg2 {[%clk 0:02:58]}  d6 {[%clk 0:03:00]} 4. Nf3 {[%clk 0:02:57]}  g6 {[%clk 0:02:59]} 5. O-O {[%clk 0:02:56]}  Bg7 {[%clk 0:03:00]} 6. c4 {[%clk 0:02:56]}  O-O {[%clk 0:03:01]} 7. Nc3 {[%clk 0:02:55]}  Nc6 {[%clk 0:03:01]} 8. d5 {[%clk 0:02:53]}  Ne5 {[%clk 0:03:01]} 9. Nxe5 {[%clk 0:02:52]}  dxe5 {[%clk 0:03:01]} 10. b3 {[%clk 0:02:52]}  Rb8 {[%clk 0:03:00]} 11. Bb2 {[%clk 0:02:43]}  e6 {[%clk 0:03:00]} 12. Ba3 {[%clk 0:02:39]}  Re8 {[%clk 0:03:00]} 13. d6 {[%clk 0:02:36]}  Bf8 {[%clk 0:02:49]} 14. dxc7 {[%clk 0:02:33]}  Qxc7 {[%clk 0:02:50]} 15. Nb5 {[%clk 0:02:26]}  Qb6 {[%clk 0:02:45]} 16. Bb2 {[%clk 0:02:15]}  a6 {[%clk 0:02:42]} 17. Bxe5 {[%clk 0:02:12]}  axb5 {[%clk 0:02:43]} 18. Bxb8 {[%clk 0:02:11]}  e5 {[%clk 0:02:43]} 19. a4 {[%clk 0:01:09]}  Nd7 {[%clk 0:01:45]} 20. a5 {[%clk 0:01:01]}  Qc5 {[%clk 0:01:39]} 21. b4 {[%clk 0:00:46]}  Qxb4 {[%clk 0:01:36]} 22. Rb1 {[%clk 0:00:36]}  Qxc4 {[%clk 0:01:35]} 23. Bd5+ {[%clk 0:00:35]} 1-0


[Site "https://www.chess.com"]

[Event "Titled Tuesday Blitz May 10 Early 2022"]
[White "Toncheva, Nadya"]
[Black "Mirzoev, Azer"]
[WhiteFideId "2924056"]
[BlackFideId "13400304"]
[WhiteElo "1888"]
[BlackElo "2525"]
[Result "0-1"]
[Round "08"]
[TimeControl "180+1"]
[Date "2022.05.11"]
[WhiteClock "0:00:03"]
[BlackClock "0:00:02"]

1. e4 {[%clk 0:03:00]}  d5 {[%clk 0:02:59]} 2. exd5 {[%clk 0:02:59]}  Qxd5 {[%clk 0:03:00]} 3. Nc3 {[%clk 0:02:57]}  Qa5 {[%clk 0:03:00]} 4. d4 {[%clk 0:02:57]}  Nf6 {[%clk 0:03:00]} 5. Nf3 {[%clk 0:02:56]}  Bg4 {[%clk 0:03:00]} 6. h3 {[%clk 0:02:50]}  Bh5 {[%clk 0:02:59]} 7. Bc4 {[%clk 0:02:47]}  Nbd7 {[%clk 0:02:54]} 8. O-O {[%clk 0:02:36]}  c6 {[%clk 0:02:50]} 9. Qe2 {[%clk 0:02:28]}  e6 {[%clk 0:02:48]} 10. Bd2 {[%clk 0:02:24]}  Qc7 {[%clk 0:02:40]} 11. g4 {[%clk 0:01:51]}  Bg6 {[%clk 0:02:38]} 12. Ng5 {[%clk 0:01:52]}  O-O-O {[%clk 0:02:35]} 13. Kg2 {[%clk 0:01:36]}  Nb6 {[%clk 0:02:31]} 14. Bb3 {[%clk 0:01:33]}  h6 {[%clk 0:02:25]} 15. Nf3 {[%clk 0:01:32]}  Nfd5 {[%clk 0:02:15]} 16. Ne4 {[%clk 0:01:27]}  h5 {[%clk 0:02:01]} 17. Ne5 {[%clk 0:01:20]}  hxg4 {[%clk 0:01:54]} 18. hxg4 {[%clk 0:01:02]}  Kb8 {[%clk 0:00:38]} 19. c4 {[%clk 0:00:57]}  Nf6 {[%clk 0:00:36]} 20. Ng3 {[%clk 0:00:21]}  Rxd4 {[%clk 0:00:24]} 21. Bc3 {[%clk 0:00:11]}  Rd8 {[%clk 0:00:12]} 22. Nxg6 {[%clk 0:00:08]}  fxg6 {[%clk 0:00:13]} 23. Qxe6 {[%clk 0:00:08]}  Bd6 {[%clk 0:00:12]} 24. Rad1 {[%clk 0:00:07]}  Bf4 {[%clk 0:00:09]} 25. c5 {[%clk 0:00:04]}  Nbd5 {[%clk 0:00:08]} 26. Qe1 {[%clk 0:00:02]}  Nxc3 {[%clk 0:00:07]} 27. Qxc3 {[%clk 0:00:02]}  a6 {[%clk 0:00:07]} 28. Qf3 {[%clk 0:00:02]}  g5 {[%clk 0:00:07]} 29. Ne4 {[%clk 0:00:02]}  Rh2+ {[%clk 0:00:05]} 30. Kg1 {[%clk 0:00:03]}  Rdh8 {[%clk 0:00:05]} 31. Ng3 {[%clk 0:00:03]}  Nd7 {[%clk 0:00:05]} 32. Be6 {[%clk 0:00:03]}  Nxc5 {[%clk 0:00:05]} 33. Bf5 {[%clk 0:00:03]}  g6 {[%clk 0:00:05]} 34. b4 {[%clk 0:00:03]}  Na4 {[%clk 0:00:04]} 35. Rd7 {[%clk 0:00:03]}  Qb6 {[%clk 0:00:04]} 36. Rfd1 {[%clk 0:00:04]}  Qxb4 {[%clk 0:00:04]} 37. Rd8+ {[%clk 0:00:03]}  Ka7 {[%clk 0:00:03]} 38. Rxh8 {[%clk 0:00:02]}  Rxh8 {[%clk 0:00:03]} 39. Bxg6 {[%clk 0:00:03]}  Nc5 {[%clk 0:00:02]} 40. Be4 {[%clk 0:00:03]}  Nxe4 {[%clk 0:00:02]} 41. Nxe4 {[%clk 0:00:03]}  a5 {[%clk 0:00:02]} 42. Kg2 {[%clk 0:00:03]}  Re8 {[%clk 0:00:02]} 43. a3 {[%clk 0:00:03]}  Qxe4 {[%clk 0:00:02]} 0-1


[Site "https://www.chess.com"]

[Event "Titled Tuesday Blitz May 10 Early 2022"]
[White "Tristan, Leonardo"]
[Black "Juhasz, Agoston"]
[WhiteFideId "113816"]
[BlackFideId "778346"]
[WhiteElo "2404"]
[BlackElo "2211"]
[Result "1-0"]
[Round "08"]
[TimeControl "180+1"]
[Date "2022.05.11"]
[WhiteClock "0:00:19"]
[BlackClock "0:00:04"]

1. d4 {[%clk 0:03:00]}  Nf6 {[%clk 0:02:56]} 2. Nf3 {[%clk 0:03:01]}  g6 {[%clk 0:02:55]} 3. Bf4 {[%clk 0:03:01]}  b6 {[%clk 0:02:51]} 4. e3 {[%clk 0:03:01]}  Bb7 {[%clk 0:02:50]} 5. Be2 {[%clk 0:03:01]}  Bg7 {[%clk 0:02:49]} 6. O-O {[%clk 0:03:02]}  O-O {[%clk 0:02:50]} 7. Nbd2 {[%clk 0:03:01]}  c5 {[%clk 0:02:46]} 8. c3 {[%clk 0:03:01]}  d6 {[%clk 0:02:44]} 9. h3 {[%clk 0:03:01]}  Nbd7 {[%clk 0:02:44]} 10. a4 {[%clk 0:03:01]}  a6 {[%clk 0:02:44]} 11. Bh2 {[%clk 0:03:01]}  Rc8 {[%clk 0:02:44]} 12. Bd3 {[%clk 0:03:00]}  Qc7 {[%clk 0:02:44]} 13. Qe2 {[%clk 0:03:00]}  Nb8 {[%clk 0:02:27]} 14. e4 {[%clk 0:02:59]}  Nfd7 {[%clk 0:02:23]} 15. d5 {[%clk 0:02:52]}  Rfe8 {[%clk 0:02:14]} 16. Nc4 {[%clk 0:02:48]}  b5 {[%clk 0:02:04]} 17. axb5 {[%clk 0:02:47]}  axb5 {[%clk 0:02:05]} 18. Na3 {[%clk 0:02:19]}  c4 {[%clk 0:02:00]} 19. Bc2 {[%clk 0:02:15]}  b4 {[%clk 0:01:55]} 20. Nb5 {[%clk 0:02:09]}  Qb6 {[%clk 0:01:44]} 21. Nbd4 {[%clk 0:01:54]}  b3 {[%clk 0:01:44]} 22. Bb1 {[%clk 0:01:54]}  Na6 {[%clk 0:01:41]} 23. Ra4 {[%clk 0:01:36]}  Ne5 {[%clk 0:01:09]} 24. Nxe5 {[%clk 0:01:31]}  dxe5 {[%clk 0:01:08]} 25. Nf3 {[%clk 0:01:28]}  Qb5 {[%clk 0:01:05]} 26. Ra3 {[%clk 0:01:22]}  f6 {[%clk 0:01:01]} 27. Nd2 {[%clk 0:01:22]}  Qc5 {[%clk 0:00:47]} 28. Ra4 {[%clk 0:01:19]}  Qb5 {[%clk 0:00:37]} 29. Rxc4 {[%clk 0:01:14]}  Nc5 {[%clk 0:00:37]} 30. Qe3 {[%clk 0:01:05]}  Ba6 {[%clk 0:00:31]} 31. Re1 {[%clk 0:01:02]}  Qa5 {[%clk 0:00:23]} 32. Rb4 {[%clk 0:00:59]}  Rb8 {[%clk 0:00:24]} 33. Nc4 {[%clk 0:00:48]}  Bxc4 {[%clk 0:00:23]} 34. Rxc4 {[%clk 0:00:48]}  Rec8 {[%clk 0:00:19]} 35. f4 {[%clk 0:00:47]}  Na4 {[%clk 0:00:20]} 36. Rxc8+ {[%clk 0:00:43]}  Rxc8 {[%clk 0:00:20]} 37. Qf2 {[%clk 0:00:39]}  exf4 {[%clk 0:00:17]} 38. Bxf4 {[%clk 0:00:39]}  Bf8 {[%clk 0:00:17]} 39. e5 {[%clk 0:00:38]}  e6 {[%clk 0:00:13]} 40. d6 {[%clk 0:00:38]}  fxe5 {[%clk 0:00:14]} 41. Bxe5 {[%clk 0:00:38]}  Bg7 {[%clk 0:00:06]} 42. Bxg7 {[%clk 0:00:35]}  Kxg7 {[%clk 0:00:07]} 43. Rxe6 {[%clk 0:00:36]}  Qc5 {[%clk 0:00:08]} 44. Re7+ {[%clk 0:00:32]}  Kg8 {[%clk 0:00:07]} 45. Qxc5 {[%clk 0:00:29]}  Nxc5 {[%clk 0:00:08]} 46. d7 {[%clk 0:00:27]}  Rf8 {[%clk 0:00:08]} 47. Be4 {[%clk 0:00:22]}  Nxe4 {[%clk 0:00:04]} 48. Re8 {[%clk 0:00:19]} 1-0


[Site "https://www.chess.com"]